bitfinex/quotes_BTCUSD_20250423
["timestamp","ask_amount","ask_price","bid_price","bid_amount"]
[1745391088563,0.51774971,93572.0,93571.0,1e-08]
[1745391088999,0.52274971,93572.0,93571.0,1e-08]
[1745391089220,0.47664971,93572.0,93571.0,1e-08]
[1745391089669,0.47656971,93572.0,93571.0,1e-08]
[1745391089873,0.37984971,93572.0,93571.0,1e-08]
[1745391090157,0.47656971,93572.0,93571.0,1e-08]
[1745391090391,0.45662698,93572.0,93571.0,1e-08]
[1745391091425,0.4765771,93572.0,93571.0,1e-08]
[1745391093989,0.55347477,93572.0,93571.0,1e-08]
[1745391094358,0.4765771,93572.0,93571.0,1e-08]
[1745391095783,0.4695771,93572.0,93571.0,1e-08]
[1745391096657,0.7785771,93572.0,93571.0,1e-08]
[1745391097116,0.75862698,93572.0,93571.0,1e-08]
[1745391098113,0.64736613,93572.0,93571.0,1e-08]
[1745391098350,0.74408613,93572.0,93571.0,1e-08]
[1745391098978,0.73411177,93572.0,93571.0,1e-08]
[1745391100494,0.74409843,93572.0,93571.0,1e-08]
[1745391101676,0.73411177,93572.0,93571.0,1e-08]
[1745391102440,0.42511177,93572.0,93571.0,1e-08]
[1745391103399,0.41811177,93572.0,93571.0,1e-08]
[1745391103569,0.30980872,93572.0,93571.0,1e-08]
[1745391104734,0.41811177,93572.0,93571.0,1e-08]
[1745391106256,0.32139177,93572.0,93571.0,1e-08]
[1745391106608,0.41815177,93572.0,93571.0,1e-08]
[1745391108179,0.43269262,93572.0,93571.0,1e-08]
[1745391109047,0.43269262,93572.0,93570.0,0.0004249]
[1745391109048,0.01454085,93571.0,93570.0,1e-08]
[1745391109431,0.12830848,93571.0,93570.0,1e-08]
[1745391109605,0.13578923,93571.0,93570.0,1e-08]
[1745391110572,0.14278923,93571.0,93570.0,1e-08]
[1745391112049,0.14778923,93571.0,93570.0,1e-08]
[1745391112262,0.14078923,93571.0,93570.0,1e-08]
[1745391113123,0.12624838,93571.0,93570.0,1e-08]
[1745391113324,0.12824838,93571.0,93570.0,1e-08]
[1745391113764,0.13324838,93571.0,93570.0,1e-08]
[1745391114670,0.12624838,93571.0,93570.0,1e-08]
[1745391115053,0.13424838,93571.0,93570.0,1e-08]
[1745391119925,0.12724838,93571.0,93570.0,1e-08]
[1745391121473,0.21379855,93546.0,93544.0,0.0035184]
[1745391121713,0.00540259,93545.0,93544.0,0.02335996]
[1745391121891,0.00540259,93545.0,93544.0,0.02435996]
[1745391122109,0.00540259,93545.0,93544.0,0.0045184]
[1745391122267,0.00540259,93545.0,93544.0,0.0239923]
[1745391122475,0.00540259,93545.0,93544.0,0.0045184]
[1745391122849,0.00540259,93545.0,93544.0,0.02413141]
[1745391123065,0.00540259,93545.0,93544.0,0.0045184]
[1745391123467,0.00640259,93545.0,93544.0,0.0045184]
[1745391123873,0.00640259,93545.0,93544.0,0.02392853]
[1745391124128,0.00640259,93545.0,93544.0,0.02041013]
[1745391124329,0.00740259,93545.0,93544.0,0.001]
[1745391124983,0.00640259,93545.0,93544.0,0.001]
[1745391125176,0.00540259,93545.0,93544.0,0.001]
[1745391125486,0.00840259,93545.0,93544.0,0.001]
[1745391125690,0.00640259,93545.0,93544.0,0.0506]
[1745391127102,0.00840259,93545.0,93544.0,0.07024265]
[1745391127651,0.00585372,93545.0,93544.0,0.07024265]
[1745391131930,0.00140259,93545.0,93544.0,0.07024265]
[1745391132326,0.00581026,93545.0,93544.0,0.07024265]
[1745391132543,0.00140259,93545.0,93544.0,0.07024265]
[1745391132955,0.00581026,93545.0,93544.0,0.07024265]
[1745391133093,0.21520343,93545.0,93544.0,0.07024265]
[1745391133300,0.2196111,93545.0,93544.0,0.06615519]
[1745391134364,0.2196111,93545.0,93544.0,0.01964265]
[1745391134741,0.21381684,93538.0,93535.0,0.46942613]
[1745391134944,0.01069072,93539.0,93535.0,0.34]
[1745391135197,0.00440129,93537.0,93535.0,0.34]
[1745391135336,0.00440375,93538.0,93535.0,0.34]
[1745391135602,0.00809201,93539.0,93535.0,0.34]
[1745391135799,0.21381684,93538.0,93535.0,0.34]
[1745391136001,0.00855881,93539.0,93536.0,0.06723161]
[1745391136201,0.00855881,93539.0,93537.0,0.34]
[1745391136383,0.21381684,93538.0,93537.0,0.34]
[1745391136714,0.001,93538.0,93537.0,0.34]
[1745391136921,0.00955881,93539.0,93537.0,0.34]
[1745391137259,0.01055881,93539.0,93537.0,0.34]
[1745391137573,0.00955881,93539.0,93537.0,0.34]
[1745391137725,0.001,93538.0,93537.0,0.34007315]
[1745391137919,0.00855881,93539.0,93537.0,0.33907315]
[1745391138127,0.00955881,93539.0,93537.0,0.33907315]
[1745391138353,0.01055881,93539.0,93537.0,0.34007315]
[1745391138775,0.22437558,93539.0,93537.0,0.34007315]
[1745391139286,0.22337558,93539.0,93537.0,0.34007315]
[1745391139428,0.001,93538.0,93537.0,0.33907315]
[1745391139778,0.002,93538.0,93537.0,0.34007315]
[1745391139983,0.001,93538.0,93537.0,0.34007315]
[1745391140188,0.22237356,93539.0,93537.0,0.33907315]
[1745391140330,0.22337356,93539.0,93537.0,0.33907315]
[1745391140542,0.22437356,93539.0,93537.0,0.34007315]
[1745391140732,0.22237356,93539.0,93537.0,0.33907315]
[1745391141067,0.001,93538.0,93537.0,0.34007315]
[1745391141283,0.002,93538.0,93537.0,0.34007315]
[1745391141483,0.002,93538.0,93537.0,0.33907315]
[1745391142459,0.001,93538.0,93537.0,0.33907315]
[1745391142782,0.001,93538.0,93536.0,0.02103161]
[1745391142977,0.21528155,93539.0,93537.0,0.001]
[1745391143364,0.22597227,93539.0,93537.0,0.001]
[1745391143592,0.21381913,93537.0,93536.0,0.02103161]
[1745391143809,0.001,93538.0,93536.0,0.02103161]
[1745391144020,0.22497227,93539.0,93536.0,0.02103161]
[1745391144194,0.22597227,93539.0,93536.0,0.02103161]
[1745391144398,0.001,93538.0,93537.0,0.001]
[1745391144571,0.001,93538.0,93536.0,0.02103161]
[1745391144901,0.21481913,93537.0,93536.0,0.02203161]
[1745391145105,0.001,93537.0,93536.0,0.02203161]
[1745391145305,0.21481913,93537.0,93536.0,0.02203161]
[1745391146565,0.001,93537.0,93536.0,0.36103161]
[1745391146954,0.001,93538.0,93537.0,0.002]
[1745391147328,0.22497428,93539.0,93536.0,0.02103161]
[1745391147685,0.001,93537.0,93536.0,0.02403161]
[1745391147882,0.001,93537.0,93536.0,0.02103161]
[1745391148148,0.22497428,93539.0,93537.0,0.002]
[1745391148276,0.001,93538.0,93537.0,0.002]
[1745391150102,0.21381913,93537.0,93536.0,0.02103161]
[1745391150285,0.21181913,93537.0,93536.0,0.02103161]
[1745391150740,0.20481913,93537.0,93536.0,0.02103161]
[1745391151095,0.20581913,93537.0,93536.0,0.0008504]
[1745391151309,0.25541913,93537.0,93536.0,0.0008504]
[1745391151511,0.20681913,93537.0,93536.0,0.0008504]
[1745391151694,0.20781913,93537.0,93536.0,0.0028504]
[1745391152934,0.20581913,93537.0,93536.0,0.0008504]
[1745391153269,0.21081913,93537.0,93536.0,0.0008504]
[1745391155871,0.22453168,93528.0,93521.0,0.19047003]
[1745391156072,0.01069221,93526.0,93518.0,0.14011925]
[1745391156268,0.01069244,93524.0,93521.0,0.01983887]
[1745391156570,0.01069244,93524.0,93520.0,0.14011902]
[1745391156789,0.22454245,93524.0,93520.0,0.34]
[1745391157025,0.01069232,93525.0,93520.0,0.36000385]
[1745391157187,0.01069255,93523.0,93520.0,0.36000385]
[1745391157807,0.01069255,93523.0,93520.0,0.02100385]
[1745391159107,0.01069255,93523.0,93520.0,0.02000385]
[1745391159308,0.01269255,93523.0,93518.0,0.35069312]
[1745391159837,0.01069267,93522.0,93518.0,0.35069312]
[1745391160239,0.01069278,93521.0,93518.0,0.02026423]
[1745391160580,0.01069267,93522.0,93516.0,0.35069335]
[1745391160796,0.01069301,93519.0,93516.0,0.36020659]
[1745391161002,0.21386477,93518.0,93516.0,0.36020659]
[1745391161204,0.22455521,93519.0,93516.0,0.36020659]
[1745391161413,0.01069301,93519.0,93516.0,0.36020659]
[1745391161796,0.01069301,93519.0,93516.0,0.02020659]
[1745391162220,0.01069301,93519.0,93515.0,0.01154407]
[1745391162374,0.01069312,93518.0,93515.0,0.0008506]
[1745391162571,0.01069278,93521.0,93516.0,0.34]
[1745391162776,0.01169267,93522.0,93518.0,0.35069312]
[1745391162983,0.001,93519.0,93518.0,0.01069312]
[1745391163154,0.002,93519.0,93518.0,0.34]
[1745391163355,0.001,93519.0,93518.0,0.34]
[1745391164125,0.01169278,93521.0,93518.0,0.34]
[1745391164606,0.01169278,93521.0,93516.0,0.22455974]
[1745391164838,0.001,93521.0,93520.0,0.34]
[1745391165044,0.001,93521.0,93520.0,0.54310305]
[1745391165761,0.001,93521.0,93520.0,0.44830305]
[1745391166011,0.01069164,93531.0,93522.0,0.01069267]
[1745391166206,0.01069175,93530.0,93525.0,0.01069232]
[1745391166504,0.01069187,93529.0,93524.0,0.01069244]
[1745391166707,0.01069175,93530.0,93525.0,0.01069232]
[1745391166914,0.01069187,93529.0,93524.0,0.01069244]
[1745391167120,0.01069175,93530.0,93525.0,0.01069232]
[1745391167316,0.01069187,93529.0,93525.0,0.34]
[1745391168104,0.001,93529.0,93525.0,0.34]
[1745391168485,0.001,93529.0,93525.0,0.35069232]
[1745391168689,0.01169187,93529.0,93525.0,0.34]
[1745391168892,0.002,93529.0,93525.0,0.34]
[1745391169233,0.001,93529.0,93525.0,0.35069232]
[1745391169374,0.001,93529.0,93525.0,0.34]
[1745391169574,0.002,93529.0,93525.0,0.34]
[1745391169982,0.002,93529.0,93525.0,0.35069232]
[1745391170385,0.002,93529.0,93527.0,0.34]
[1745391170580,0.002,93529.0,93528.0,0.5538397]
[1745391171198,0.001,93529.0,93528.0,0.5538397]
[1745391171621,0.002,93529.0,93528.0,0.5538397]
[1745391172147,0.001,93529.0,93528.0,0.5538397]
[1745391172350,0.001,93531.0,93530.0,0.55383513]
[1745391173792,0.001,93531.0,93530.0,0.66213818]
[1745391174001,0.002,93531.0,93530.0,0.66213818]
[1745391174235,0.00615741,93540.0,93535.0,0.22451453]
[1745391174454,0.21380541,93544.0,93535.0,0.22670246]
[1745391174654,0.01068947,93550.0,93545.0,0.21379995]
[1745391174807,0.01068958,93549.0,93543.0,0.35069027]
[1745391175214,0.01068969,93548.0,93543.0,0.34]
[1745391175413,0.01068958,93549.0,93545.0,0.34]
[1745391175574,0.01068981,93547.0,93543.0,0.34]
[1745391176187,0.005,93549.0,93546.0,0.2244873]
[1745391176395,0.002,93549.0,93545.0,0.34]
[1745391176596,0.003,93547.0,93545.0,0.34]
[1745391176837,0.005,93547.0,93545.0,0.34]
[1745391178531,0.01068958,93549.0,93545.0,0.34]
[1745391178852,0.002,93547.0,93545.0,0.341]
[1745391179281,0.002,93547.0,93545.0,0.001]
[1745391179644,0.006,93547.0,93545.0,0.001]
[1745391180858,0.21979654,93547.0,93545.0,0.001]
[1745391181088,0.0483,93546.0,93545.0,0.001]
[1745391181282,0.0973,93546.0,93545.0,0.001]
[1745391181893,0.0903,93546.0,93545.0,0.001]
[1745391182286,0.0943,93546.0,93545.0,0.002]
[1745391182606,0.0943,93546.0,93545.0,0.001]
[1745391182911,0.0963,93546.0,93545.0,0.002]
[1745391183716,0.19822,93546.0,93545.0,0.002]
[1745391186128,0.30652305,93546.0,93545.0,0.002]
[1745391186327,0.31401153,93546.0,93545.0,0.002]
[1745391186895,0.31201153,93546.0,93545.0,0.001]
[1745391187101,0.20370848,93546.0,93545.0,0.001]
[1745391187300,0.20670848,93546.0,93545.0,0.002]
[1745391188158,0.20270848,93546.0,93545.0,0.001]
[1745391188508,0.01069084,93538.0,93530.0,0.12942613]
[1745391189360,0.21381913,93537.0,93530.0,0.12942613]
[1745391189565,0.20681913,93537.0,93522.0,0.34]
[1745391189759,0.20681913,93537.0,93527.0,0.12942613]
[1745391190253,0.20681913,93537.0,93523.0,0.01069255]
[1745391190610,0.20681913,93537.0,93527.0,0.12942613]
[1745391191517,0.20681913,93537.0,93527.0,0.14011822]
[1745391191761,0.20881913,93537.0,93527.0,0.14011822]
[1745391191928,0.20881913,93537.0,93530.0,0.2245259]
[1745391192130,0.20881913,93537.0,93530.0,0.01069175]
[1745391192569,0.20981913,93537.0,93530.0,0.01069175]
[1745391192797,0.20981913,93537.0,93531.0,0.01069164]
[1745391193425,0.20981913,93537.0,93530.0,0.01069175]
[1745391194129,0.20981913,93537.0,93528.0,0.01069198]
[1745391194662,0.20981913,93537.0,93529.0,0.01069187]
[1745391194867,0.20981913,93537.0,93531.0,0.01069164]
[1745391195080,0.20981913,93537.0,93529.0,0.22452894]
[1745391195282,0.20981913,93537.0,93530.0,0.01069175]
[1745391195597,0.20981913,93537.0,93529.0,0.01069187]
[1745391196880,0.20981913,93537.0,93528.0,0.01069198]
[1745391197128,0.20981913,93537.0,93529.0,0.01069187]
[1745391197440,0.20281913,93537.0,93528.0,0.01069198]
[1745391197661,0.20281913,93537.0,93527.0,0.3539596]
[1745391198316,0.20281913,93537.0,93528.0,0.01069198]
[1745391198688,0.20281913,93537.0,93527.0,0.12942613]
[1745391199991,0.20281913,93537.0,93523.0,0.62735053]
[1745391200138,0.20281913,93537.0,93527.0,0.12942613]
[1745391205154,0.19581913,93537.0,93527.0,0.12942613]
[1745391208611,0.19581913,93537.0,93525.0,0.01069232]
[1745391208809,0.19581913,93537.0,93526.0,0.0021382]
[1745391209012,0.19581913,93537.0,93527.0,0.12942613]
[1745391212129,0.19581913,93537.0,93521.0,0.35069278]
[1745391212349,0.19581913,93537.0,93527.0,0.12942613]
[1745391212574,0.19581913,93537.0,93522.0,0.01069267]
[1745391212790,0.0387,93536.0,93527.0,0.12942613]
[1745391213036,0.0387,93536.0,93526.0,0.12942613]
[1745391214050,0.0407,93536.0,93526.0,0.12942613]
[1745391214614,0.0417,93536.0,93526.0,0.12942613]
[1745391216360,0.088,93536.0,93535.0,4.992e-05]
[1745391218863,0.0493,93536.0,93535.0,4.992e-05]
[1745391219234,0.0493,93536.0,93526.0,0.12942613]
[1745391219451,0.01069209,93527.0,93526.0,0.12989293]
[1745391219603,0.22453408,93527.0,93526.0,0.0004668]
[1745391220492,0.21384199,93527.0,93526.0,0.0004668]
[1745391220695,0.22553408,93527.0,93526.0,0.0004668]
[1745391221271,0.22653408,93527.0,93526.0,0.0004668]
[1745391221484,0.002,93527.0,93526.0,0.0004668]
[1745391226134,0.002,93527.0,93526.0,0.3404668]
[1745391228231,0.00569141,93533.0,93528.0,0.35069198]
[1745391228582,0.01069072,93539.0,93528.0,0.34]
[1745391228786,0.01069095,93537.0,93532.0,0.2138283]
[1745391228964,0.01069118,93535.0,93531.0,0.01069164]
[1745391229408,0.001,93533.0,93531.0,0.01069164]
[1745391229608,0.001,93533.0,93531.0,0.22452421]
[1745391229809,0.01069107,93536.0,93531.0,0.22452421]
[1745391230223,0.001,93535.0,93531.0,0.22452421]
[1745391230457,0.002,93535.0,93531.0,0.22452421]
[1745391230671,0.01169118,93535.0,93531.0,0.22452421]
[1745391230848,0.001,93533.0,93531.0,0.22452421]
[1745391231504,0.001,93533.0,93530.0,0.35069175]
[1745391231700,0.001,93533.0,93531.0,0.21383284]
[1745391231876,0.001,93533.0,93530.0,0.35069175]
[1745391232381,0.001,93533.0,93531.0,0.21383284]
[1745391232588,0.01069118,93535.0,93531.0,0.21383284]
[1745391232785,0.01069129,93534.0,93530.0,0.35069175]
[1745391233012,0.001,93533.0,93531.0,0.001]
[1745391233125,0.002,93533.0,93531.0,0.001]
[1745391233592,0.002,93533.0,93530.0,0.34]
[1745391233750,0.01069129,93534.0,93530.0,0.34]
[1745391233950,0.01169129,93534.0,93530.0,0.35169175]
[1745391234292,0.01269129,93534.0,93530.0,0.341]
[1745391234491,0.001,93533.0,93531.0,0.001]
[1745391235747,0.01169129,93534.0,93530.0,0.35069175]
[1745391235942,0.01069118,93535.0,93530.0,0.35069175]
[1745391236080,0.001,93533.0,93530.0,0.35169175]
[1745391236482,0.002,93533.0,93531.0,0.001]
[1745391236698,0.001,93533.0,93531.0,0.001]
[1745391236915,0.01169129,93534.0,93530.0,0.35069175]
[1745391237110,0.001,93533.0,93530.0,0.35169175]
[1745391237319,0.001,93533.0,93530.0,0.35069175]
[1745391237725,0.003,93533.0,93531.0,0.21483284]
[1745391238203,0.003,93533.0,93531.0,0.21697098]
[1745391238940,0.21378679,93552.0,93544.0,0.2244916]
[1745391239143,0.01068958,93549.0,93545.0,0.21379859]
[1745391239345,0.01068935,93551.0,93545.0,0.22448863]
[1745391239496,0.01068935,93551.0,93544.0,0.2244916]
[1745391239497,0.01068969,93548.0,93544.0,0.2244916]
[1745391239674,0.01068981,93547.0,93542.0,0.35392257]
[1745391239878,0.01068992,93546.0,93542.0,0.21380606]
[1745391240086,0.01068992,93546.0,93542.0,0.22449644]
[1745391240493,0.01068992,93546.0,93542.0,0.21380606]
[1745391240970,0.01068992,93546.0,93542.0,0.21480606]
[1745391241598,0.01069004,93545.0,93542.0,0.001]
[1745391242052,0.01068958,93549.0,93544.0,0.34]
[1745391242387,0.01068958,93549.0,93546.0,0.34]
[1745391242718,0.01068947,93550.0,93546.0,0.34]
[1745391243197,0.003,93549.0,93548.0,0.34]
[1745391243599,0.007,93549.0,93548.0,0.34]
[1745391243796,0.01068935,93551.0,93548.0,0.34]
[1745391243979,0.004,93550.0,93548.0,0.34]
[1745391245310,0.002,93550.0,93548.0,0.34]
[1745391245465,0.01368958,93549.0,93548.0,0.001]
[1745391245675,0.003,93549.0,93548.0,0.001]
[1745391245896,0.003,93549.0,93548.0,0.341]
[1745391246263,0.01068935,93551.0,93548.0,0.34]
[1745391246415,0.006,93550.0,93548.0,0.341]
[1745391246822,0.003,93549.0,93548.0,0.34]
[1745391247020,0.003,93549.0,93548.0,0.341]
[1745391247201,0.006,93549.0,93548.0,0.341]
[1745391248491,0.003,93549.0,93548.0,0.34]
[1745391248817,0.003,93550.0,93548.0,0.341]
[1745391249020,0.003,93549.0,93548.0,0.341]
[1745391249267,0.003,93549.0,93548.0,0.34]
[1745391249468,0.006,93549.0,93548.0,0.001]
[1745391251540,0.00968935,93551.0,93548.0,0.001]
[1745391251779,0.19416532,93552.0,93548.0,0.001]
[1745391252130,0.01068935,93551.0,93548.0,0.001]
[1745391252330,0.01068935,93551.0,93547.0,0.35068981]
[1745391252721,0.01368935,93551.0,93547.0,0.35068981]
[1745391253127,0.01368935,93551.0,93331.0,1.4903834]
[1745391253128,0.01069061,93540.0,93535.0,0.35069118]
[1745391253361,0.22450288,93540.0,93537.0,0.34]
[1745391253530,0.01069084,93538.0,93533.0,0.62732827]
[1745391253748,0.22450801,93538.0,93533.0,0.4135]
[1745391253948,0.01069095,93537.0,93534.0,0.34]
[1745391254837,0.01069095,93537.0,93535.0,0.003]
[1745391255301,0.00969095,93537.0,93535.0,0.003]
[1745391255485,0.01069107,93536.0,93532.0,0.35069152]
[1745391255778,0.01069107,93536.0,93534.0,0.004]
[1745391256381,0.01069107,93536.0,93535.0,0.003]
[1745391256794,0.01069084,93538.0,93534.0,0.35069129]
[1745391256952,0.001,93537.0,93535.0,0.003]
[1745391258172,0.01069072,93539.0,93536.0,0.01069107]
[1745391259083,0.01069038,93542.0,93536.0,0.01069107]
[1745391259287,0.22449888,93542.0,93536.0,0.01269107]
[1745391259668,0.01069072,93539.0,93536.0,0.01469107]
[1745391260112,0.01069072,93539.0,93536.0,0.01269107]
[1745391260373,0.01069072,93539.0,93536.0,0.01469107]
[1745391261026,0.01069072,93539.0,93536.0,0.004]
[1745391261438,0.01069072,93539.0,93536.0,0.006]
[1745391261617,0.01069072,93539.0,93536.0,0.002]
[1745391261822,0.01069084,93538.0,93534.0,0.15476974]
[1745391262028,0.01069084,93538.0,93533.0,0.22451953]
[1745391262236,0.01069061,93540.0,93535.0,0.01069118]
[1745391262446,0.01069072,93539.0,93536.0,0.002]
[1745391262838,0.01069084,93538.0,93534.0,0.22651508]
[1745391263276,0.22550936,93538.0,93534.0,0.002]
[1745391263438,0.01069095,93537.0,93535.0,0.002]
[1745391264178,0.22451228,93537.0,93535.0,0.002]
[1745391264504,0.01069095,93537.0,93535.0,0.002]
[1745391265253,0.01069095,93537.0,93534.0,0.002]
[1745391265686,0.22451215,93537.0,93534.0,0.003]
[1745391265889,0.22451215,93537.0,93534.0,0.001]
[1745391266093,0.01069107,93536.0,93535.0,0.001]
[1745391266430,0.01069107,93536.0,93532.0,0.22451996]
[1745391266635,0.01069107,93536.0,93535.0,0.001]
[1745391266850,0.22551215,93537.0,93534.0,0.002]
[1745391267084,0.01069107,93536.0,93534.0,0.002]
[1745391267263,0.01069107,93536.0,93535.0,0.001]
[1745391268515,0.01069107,93536.0,93533.0,0.01069141]
[1745391268718,0.01069107,93536.0,93534.0,0.002]
[1745391268914,0.01169107,93536.0,93532.0,0.01369152]
[1745391269278,0.01069107,93536.0,93535.0,0.002]
[1745391269501,0.01069118,93535.0,93530.0,0.01069175]
[1745391269720,0.01069118,93535.0,93533.0,0.002]
[1745391269887,0.21382598,93534.0,93533.0,0.002]
[1745391270093,0.01069141,93533.0,93530.0,0.01069175]
[1745391270318,0.01069164,93531.0,93527.0,0.34326704]
[1745391270499,0.01069164,93531.0,93528.0,0.01069198]
[1745391270903,0.00669152,93532.0,93528.0,0.01069198]
[1745391271886,0.00469152,93532.0,93528.0,0.01069198]
[1745391272081,0.01069164,93531.0,93528.0,0.01069198]
[1745391272480,0.00869164,93531.0,93528.0,0.01369198]
[1745391272700,0.00869164,93531.0,93528.0,0.003]
[1745391273262,0.00969164,93531.0,93528.0,0.003]
[1745391273465,0.00969164,93531.0,93528.0,0.006]
[1745391273681,0.01069164,93531.0,93528.0,0.006]
[1745391274579,0.22652531,93531.0,93528.0,0.006]
[1745391274777,0.01269164,93531.0,93528.0,0.006]
[1745391275229,0.21383513,93530.0,93528.0,0.006]
[1745391275816,0.22652633,93531.0,93528.0,0.006]
[1745391276037,0.21383741,93529.0,93528.0,0.003]
[1745391276589,0.21383741,93529.0,93528.0,0.005]
[1745391276785,0.21383741,93529.0,93528.0,0.002]
[1745391276985,0.001,93530.0,93528.0,0.002]
[1745391277187,0.001,93530.0,93528.0,0.003]
[1745391277729,0.21483736,93530.0,93528.0,0.003]
[1745391277932,0.21383736,93530.0,93528.0,0.001]
[1745391278331,0.001,93529.0,93528.0,0.003]
[1745391278540,0.001,93529.0,93528.0,0.001]
[1745391279053,0.01169187,93529.0,93526.0,0.0004668]
[1745391279226,0.01269187,93529.0,93528.0,0.003]
[1745391279465,0.002,93529.0,93528.0,0.005]
[1745391279660,0.001,93529.0,93528.0,0.005]
[1745391279844,0.001,93529.0,93528.0,0.002]
[1745391280049,0.001,93529.0,93528.0,0.004]
[1745391280245,0.002,93529.0,93528.0,0.004]
[1745391281615,0.001,93529.0,93528.0,0.004]
[1745391281922,0.002,93529.0,93528.0,0.5608397]
[1745391282310,0.00469152,93532.0,93529.0,0.34]
[1745391282502,0.00469152,93532.0,93529.0,0.35069187]
[1745391282704,0.01069084,93538.0,93530.0,0.22452688]
[1745391282914,0.01069129,93534.0,93530.0,0.01069175]
[1745391283111,0.01069141,93533.0,93530.0,0.01069175]
[1745391283982,0.001,93532.0,93530.0,0.01069175]
[1745391284345,0.01169152,93532.0,93529.0,0.01569187]
[1745391284738,0.01169152,93532.0,93529.0,0.01369187]
[1745391285194,0.01169152,93532.0,93530.0,0.002]
[1745391285509,0.01069152,93532.0,93530.0,0.002]
[1745391285717,0.01069152,93532.0,93530.0,0.005]
[1745391286214,0.01069152,93532.0,93530.0,0.002]
[1745391286397,0.01169152,93532.0,93530.0,0.003]
[1745391286740,0.001,93532.0,93530.0,0.005]
[1745391288107,0.001,93532.0,93530.0,0.21883379]
[1745391288699,0.001,93532.0,93530.0,0.005]
[1745391289484,0.001,93532.0,93530.0,0.2188345]
[1745391289681,0.21483266,93532.0,93530.0,0.005]
[1745391289868,0.0465,93531.0,93530.0,0.005]
[1745391290074,0.0395,93531.0,93530.0,0.005]
[1745391290828,0.0395,93531.0,93530.0,0.002]
[1745391291199,0.01069187,93529.0,93526.0,0.0004668]
[1745391291419,0.21384199,93527.0,93526.0,0.0004668]
[1745391291596,0.21184199,93527.0,93526.0,0.0004668]
[1745391292182,0.20884199,93527.0,93526.0,0.0004668]
[1745391292628,0.001,93527.0,93526.0,0.0034668]
[1745391292804,0.001,93527.0,93526.0,0.0022128]
[1745391293007,0.002,93527.0,93526.0,0.0062128]
[1745391294553,0.21584199,93527.0,93526.0,0.0062128]
[1745391297189,0.002,93527.0,93526.0,0.0062128]
[1745391297846,0.21953145,93529.0,93526.0,0.0062128]
[1745391298725,0.21384199,93527.0,93526.0,0.0022128]
[1745391298944,0.01069232,93525.0,93521.0,0.35069278]
[1745391299162,0.21385113,93523.0,93521.0,0.34]
[1745391299347,0.01069244,93524.0,93521.0,0.34]
[1745391299578,0.22500062,93527.0,93522.0,0.01069267]
[1745391299769,0.21384656,93525.0,93521.0,0.35069278]
[1745391300026,0.01069221,93526.0,93521.0,0.35069278]
[1745391300240,0.01069244,93524.0,93521.0,0.35069278]
[1745391300453,0.01069232,93525.0,93521.0,0.35069278]
[1745391300675,0.00146654,93527.0,93524.0,0.01069244]
[1745391300863,0.00146654,93527.0,93526.0,0.34]
[1745391301400,0.00046654,93527.0,93526.0,0.34]
[1745391301843,0.00146654,93527.0,93524.0,0.01269244]
[1745391302511,0.00346654,93527.0,93526.0,0.343]
[1745391302723,0.00246654,93527.0,93526.0,0.341]
[1745391302939,0.00146654,93527.0,93526.0,0.34]
[1745391303367,0.00246654,93527.0,93526.0,0.34]
[1745391304659,0.00146654,93527.0,93526.0,0.34]
[1745391305096,0.00246654,93527.0,93526.0,0.341]
[1745391305518,0.01069175,93530.0,93526.0,0.341]
[1745391305731,0.01069175,93530.0,93526.0,0.34105974]
[1745391306217,0.22452724,93530.0,93526.0,0.00105974]
[1745391306418,0.22452724,93530.0,93526.0,5.974e-05]
[1745391306857,0.22452724,93530.0,93526.0,0.01075195]
[1745391306858,0.01069175,93530.0,93526.0,0.01075195]
[1745391307061,0.01069152,93532.0,93529.0,0.35069187]
[1745391307280,0.01069152,93532.0,93529.0,0.34]
[1745391307608,0.001,93530.0,93529.0,0.34]
[1745391307740,0.002,93530.0,93529.0,0.34]
[1745391308143,0.001,93530.0,93529.0,0.341]
[1745391308351,0.01069152,93532.0,93529.0,0.34]
[1745391308534,0.01169152,93532.0,93529.0,0.34]
[1745391308734,0.01169152,93532.0,93529.0,0.341]
[1745391308956,0.01169152,93532.0,93529.0,0.001]
[1745391308957,0.01069152,93532.0,93529.0,0.001]
[1745391309746,0.21383741,93529.0,93527.0,0.34]
[1745391310157,0.22452928,93529.0,93526.0,5.974e-05]
[1745391310898,0.22352928,93529.0,93526.0,5.974e-05]
[1745391311415,0.21384199,93527.0,93526.0,0.00205974]
[1745391311615,0.22252928,93529.0,93526.0,0.00205974]
[1745391312171,0.22152928,93529.0,93526.0,0.00205974]
[1745391312409,0.22252928,93529.0,93526.0,0.00205974]
[1745391312559,0.001,93527.0,93526.0,0.00405974]
[1745391313148,0.21952957,93529.0,93526.0,0.00405974]
[1745391313476,0.21384185,93528.0,93526.0,0.00405974]
[1745391313829,0.21384185,93528.0,93526.0,0.00205974]
[1745391314047,0.21384185,93528.0,93526.0,0.00105974]
[1745391314377,0.21384185,93528.0,93526.0,5.974e-05]
[1745391314700,0.001,93527.0,93526.0,0.00105974]
[1745391314844,0.21484185,93528.0,93526.0,0.00105974]
[1745391315363,0.21584185,93528.0,93526.0,0.00105974]
[1745391315559,0.21484185,93528.0,93526.0,5.974e-05]
[1745391315788,0.001,93527.0,93526.0,0.00105974]
[1745391317221,0.001,93527.0,93526.0,1e-08]
[1745391317222,0.25307852,93527.0,93526.0,1e-08]
[1745391317453,0.20850305,93527.0,93526.0,0.00200001]
[1745391317662,0.20850305,93527.0,93526.0,1e-08]
[1745391317861,0.21498901,93527.0,93526.0,1e-08]
[1745391318018,0.21598901,93527.0,93526.0,0.00200001]
[1745391318217,0.21798901,93527.0,93526.0,1e-08]
[1745391318418,0.21798901,93527.0,93526.0,0.00100001]
[1745391318663,0.22098901,93527.0,93526.0,0.00100001]
[1745391318978,0.22898901,93527.0,93526.0,0.00100001]
[1745391319372,0.2514822,93527.0,93526.0,0.00100001]
[1745391319932,0.23694135,93527.0,93526.0,0.00100001]
[1745391320946,0.22994135,93527.0,93526.0,0.00100001]
[1745391321387,0.32818135,93527.0,93526.0,0.00100001]